bitfinex-derivatives/quotes_SOLF0:USTF0_20250929
["timestamp","ask_amount","ask_price","bid_price","bid_amount"]
[1759153371247,93.74,207.19,207.1,4.3437]
[1759153371448,0.84022454,207.21,207.1,7.36]
[1759153371638,0.84022454,207.21,207.11,67.566]
[1759153371838,2.43,207.3,207.17,7.36]
[1759153372246,2.43,207.3,207.2,11.7015]
[1759153372446,473.7,207.32,207.21,67.534]
[1759153372749,4.3384,207.36,207.26,4.3404]
[1759153372952,3.27,207.37,207.25,7.36]
[1759153373244,3.29219,207.39,207.3,4.3396]
[1759153373439,3.29219,207.39,207.31,7.36]
[1759153374142,3.29219,207.39,207.33,7.86]
[1759153374344,3.29219,207.39,207.34,4.3387]
[1759153374547,2.53578765,207.39,207.35,67.4893]
[1759153374738,2.53578765,207.39,207.33,67.4942]
[1759153375147,4.3357,207.49,207.37,7.86]
[1759153375348,0.83929239,207.48,207.37,75.3424]
[1759153375547,0.83929239,207.48,207.39,67.4761]
[1759153375745,0.83929239,207.48,207.41,4.3371]
[1759153376047,0.83929239,207.48,207.38,7.86]
[1759153376443,5.81,207.47,207.33,12.27558812]
[1759153376943,351.28,207.56,207.44,67.4598]
[1759153377148,351.28,207.56,207.45,7.86]
[1759153377543,351.28,207.56,207.46,7.86]
[1759153377948,8.02273176,207.72,207.45,67.4555]
[1759153377949,129.59,207.64,207.53,7.86]
[1759153378144,6.65,207.64,207.53,7.86]
[1759153378854,6.65,207.64,207.48,7.86]
[1759153379151,67.3984,207.63,207.48,7.86]
[1759153379348,6.65,207.62,207.48,7.86]
[1759153380150,67.4122,207.59,207.48,7.86]
[1759153380452,6.65,207.63,207.46,67.452]
[1759153380648,6.65,207.68,207.56,67.4197]
[1759153380846,6.65,207.73,207.57,7.86]
[1759153381050,14.73,207.73,207.57,7.86]
[1759153381449,67.3701,207.72,207.57,7.86]
[1759153381650,6.65,207.71,207.57,7.86]
[1759153382752,6.65,207.67,207.52,7.86]
[1759153383149,6.65,207.65,207.52,7.86]
[1759153383350,6.65,207.63,207.49,7.86]
[1759153383952,67.3759,207.7,207.51,7.86]
[1759153384154,67.4023,207.62,207.51,7.86]
[1759153384451,6.65,207.61,207.46,7.86]
[1759153384655,67.4084,207.6,207.46,7.86]
[1759153384846,6.65,207.59,207.46,7.86]
[1759153385245,350.88,207.65,207.5,7.86]
[1759153385246,85.44,207.61,207.5,7.86]
[1759153385445,85.44,207.61,207.52,7.86]
[1759153385846,92.09,207.61,207.48,4.41558812]
[1759153386252,67.4122,207.59,207.47,7.86]
[1759153386457,74.0686,207.57,207.42,7.86]
[1759153386654,6.65,207.57,207.42,7.86]
[1759153386861,85.44,207.61,207.47,7.86]
[1759153387061,85.44,207.61,207.49,7.86]
[1759153387252,6.65,207.6,207.49,7.86]
[1759153388158,6.65,207.57,207.43,12.1967]
[1759153388549,6.65,207.57,207.43,7.86]
[1759153388752,67.4216,207.56,207.43,7.86]
[1759153389153,10.9849,207.53,207.43,7.86]
[1759153389456,10.9849,207.53,207.38,546.09652145]
[1759153389457,67.4363,207.52,207.38,546.09652145]
[1759153389657,0.83882709,207.57,207.48,4.3357]
[1759153389864,6.65,207.63,207.49,67.4436]
[1759153390056,61.54,207.65,207.51,7.86]
[1759153390361,0.83859463,207.63,207.51,7.86]
[1759153390758,61.54,207.65,207.54,67.4281]
[1759153390957,61.54,207.65,207.56,7.86]
[1759153391652,0.8384734,207.64,207.53,75.2916]
[1759153391964,0.8384734,207.64,207.55,12.1943]
[1759153392151,0.8384734,207.64,207.55,75.2848]
[1759153392350,6.65,207.71,207.59,67.4119]
[1759153392750,0.83826133,207.7,207.58,12.1937]
[1759153393365,0.83826133,207.7,207.6,4.3333]
[1759153393962,0.83826133,207.7,207.62,4.3329]
[1759153394157,0.83826133,207.7,207.63,7.46]
[1759153394356,350.8,207.73,207.63,7.46]
[1759153394561,351.63817048,207.73,207.63,7.46]
[1759153394757,351.63817048,207.73,207.64,4.3326]
[1759153394959,351.63817048,207.73,207.63,7.46]
[1759153395159,0.83817048,207.73,207.71,7.46]
[1759153395466,125.54,207.81,207.71,7.46]
[1759153395761,0.83786777,207.78,207.72,67.3673]
[1759153396070,67.2967,207.95,207.78,67.3493]
[1759153396071,6.64,207.87,207.78,67.3493]
[1759153396357,6.64,207.87,207.76,7.46]
[1759153397158,0.83754513,207.88,207.78,7.46]
[1759153397358,6.64,207.92,207.78,7.46]
[1759153397557,0.83756528,207.88,207.78,7.46]
[1759153397762,7.47756528,207.88,207.78,7.46]
[1759153397963,0.83756528,207.88,207.81,67.341]
[1759153398163,6.64,207.94,207.83,4.3285]
[1759153398357,0.83743427,207.93,207.82,74.7968]
[1759153398566,6.64,207.97,207.84,67.3315]
[1759153398762,6.64,207.97,207.86,79.113]
[1759153398964,0.83722273,207.97,207.88,67.3186]
[1759153399164,6.64,208.06,207.91,7.46]
[1759153399369,6.64,208.06,207.92,71.6317]
[1759153399572,0.83690058,208.04,207.92,71.6317]
[1759153399867,0.83690058,208.04,207.92,4.3266]
[1759153400062,0.83690058,208.04,207.92,71.6317]
[1759153400864,0.83690058,208.04,207.91,7.46]
[1759153401461,0.83690058,208.04,207.93,79.0891]
[1759153401665,125.36,208.08,207.96,7.46]
[1759153401870,126.19677984,208.08,207.96,11.87558812]
[1759153402072,0.83677984,208.08,207.97,67.2891]
[1759153402273,6.64,208.11,207.97,7.46]
[1759153402574,0.83660885,208.13,207.99,11.7851]
[1759153402969,7.47660885,208.13,207.99,7.46]
[1759153403268,67.2497,208.1,207.99,7.46]
[1759153403472,67.248,208.1,207.99,7.46]
[1759153403668,4.3236,208.08,207.93,4.41558812]
[1759153403873,10.9636,208.08,207.92,11.87558812]
[1759153404172,10.9636,208.08,207.93,7.65]
[1759153404373,0.83660885,208.13,207.98,7.65]
[1759153405166,68.07470885,208.13,207.98,7.65]
[1759153405673,0.83660885,208.13,208.0,7.65]
[1759153406470,0.83660885,208.13,208.01,4.41558812]
[1759153406674,350.54,208.16,208.02,74.9221]
[1759153406871,12.48792908,208.18,208.08,4.41558812]
[1759153407265,12.48792908,208.18,208.09,7.65]
[1759153408165,79.71042908,208.18,208.02,7.65]
[1759153408373,6.66,208.38,208.19,7.65]
[1759153408571,4.3175,208.37,208.2,4.41558812]
[1759153408769,6.66,208.37,208.19,7.65]
[1759153409074,6.66,208.37,208.18,0.83601595]
[1759153409269,10.9788,208.31,208.18,0.83601595]
[1759153409471,128.44,208.3,208.18,0.83601595]
[1759153409971,73.8539,208.27,208.18,0.83601595]
[1759153410175,67.2031,208.24,208.18,0.61711097]
[1759153410473,4.3216,208.17,208.03,7.65]
[1759153410770,128.5,208.16,208.03,7.65]
[1759153410973,4.3216,208.17,208.03,7.65]
[1759153411175,127.44,208.16,208.03,7.65]
[1759153411370,356.66,208.25,208.1,71.66328812]
[1759153411570,356.66,208.25,208.11,7.65]
[1759153411772,350.0,208.25,208.14,4.41558812]
[1759153412166,350.0,208.25,208.14,71.64998812]
[1759153412367,6.66,208.3,208.18,71.63738812]
[1759153412569,6.66,208.3,208.18,4.41558812]
[1759153412775,6.66,208.3,208.17,4.41558812]
[1759153413077,6.66,208.36,208.21,67.211]
[1759153413267,128.88,208.35,208.21,4.41558812]
[1759153413871,6.66,208.36,208.22,67.2089]
[1759153414071,6.66,208.36,208.23,4.3202]
[1759153414272,67.1403,208.44,208.21,71.62778812]
[1759153414273,128.86,208.39,208.25,12.06558812]
[1759153414672,67.1597,208.37,208.25,7.65]
[1759153414974,67.1721,208.33,208.19,7.65]
[1759153415178,133.4785,208.32,208.19,7.65]
[1759153415376,73.8394,208.31,208.14,16.38758812]
[1759153415575,4.3202,208.24,208.08,7.65]
[1759153415778,4.3202,208.24,208.06,4.3237]
[1759153415779,6.66,208.22,208.06,4.3237]
[1759153416169,10.9815,208.17,208.02,7.65]
[1759153416373,129.2,208.16,208.02,7.65]
[1759153416773,129.2,208.16,208.02,79.2472]
[1759153416978,4.3219,208.15,208.02,7.65]
[1759153417174,7.49641782,208.17,208.05,67.263]
[1759153417476,49.18,208.2,208.07,74.9062]
[1759153417681,6.66,208.23,208.08,71.66858812]
[1759153417881,80.4,208.22,208.07,7.65]
[1759153418080,6.66,208.23,208.07,7.65]
[1759153418279,4.3208,208.21,208.07,7.65]
[1759153418482,4.41558812,208.29,208.11,67.2435]
[1759153418778,129.76,208.28,208.13,67.2373]
[1759153419083,129.76,208.28,208.12,7.65]
[1759153419274,7.49597579,208.29,208.16,67.2276]
[1759153419476,129.8,208.28,208.13,71.65208812]
[1759153419681,74.68227579,208.29,208.12,7.65]
[1759153419871,4.3198,208.26,208.12,7.65]
[1759153420076,129.8,208.28,208.12,11.9725]
[1759153420276,7.49597579,208.29,208.14,67.2337]
[1759153420482,129.8,208.27,208.13,71.65258812]
[1759153420681,129.8,208.27,208.14,4.322]
[1759153420883,129.8,208.27,208.14,67.2339]
[1759153421079,129.8,208.27,208.15,67.2306]
[1759153421278,129.8,208.27,208.18,4.3212]
[1759153421481,7.49597579,208.29,208.18,4.3212]
[1759153421779,9.2,208.28,208.2,4.3208]
[1759153422182,356.38,208.35,208.2,67.2146]
[1759153422478,130.47578505,208.34,208.22,4.3204]
[1759153422683,129.62,208.33,208.22,4.3204]
[1759153423082,129.62,208.33,208.19,4.321]
[1759153423284,6.66,208.32,208.17,7.65]
[1759153423586,6.66,208.32,208.14,67.2329]
[1759153423784,6.66,208.32,208.16,4.3216]
[1759153423988,6.66,208.28,208.12,67.2392]
[1759153424285,6.66,208.28,208.13,67.2372]
[1759153424676,4.3194,208.27,208.14,4.3221]
[1759153424875,6.66,208.26,208.11,7.65]
[1759153425078,129.46,208.25,208.11,7.65]
[1759153425279,133.7799,208.25,208.11,4.3226]
[1759153425481,6.66,208.24,208.06,67.2588]
[1759153425683,6.66,208.24,208.05,7.65]
[1759153425879,6.66,208.24,208.11,67.2419]
[1759153426182,416.8873,208.35,208.15,67.2303]
[1759153426183,21.44,208.25,208.15,67.2303]
[1759153426381,120.5,208.29,208.2,67.2143]
[1759153426583,120.5,208.29,208.18,67.2204]
[1759153426776,120.5,208.29,208.16,7.65]
[1759153426777,6.66,208.28,208.16,7.65]
[1759153426983,6.66,208.28,208.18,4.3213]
[1759153427386,6.66,208.28,208.12,67.2381]
[1759153427688,6.66,208.28,208.15,4.3218]
[1759153427890,6.66,208.28,208.13,67.2369]
[1759153427891,129.62,208.27,208.13,67.2369]
[1759153428180,6.66,208.26,208.09,67.2501]
[1759153428388,11.07558812,208.26,208.09,67.2501]
[1759153428685,11.07558812,208.26,208.12,4.3225]
[1759153428891,11.07558812,208.26,208.07,67.2563]
[1759153428892,6.66,208.24,208.07,67.2563]
[1759153429083,108.78,208.36,208.22,4.3204]
[1759153429382,131.6,208.39,208.27,67.1916]
[1759153429583,131.6,208.39,208.28,67.1887]
[1759153429782,6.66,208.41,208.31,67.1788]
[1759153429983,131.64,208.4,208.31,67.1787]
[1759153430188,132.47542389,208.4,208.31,67.1787]
[1759153430390,132.43542389,208.4,208.3,67.1822]
[1759153430588,132.43542389,208.4,208.26,67.1943]
[1759153430589,132.43542389,208.4,208.28,67.1887]
[1759153430782,132.43542389,208.4,208.29,67.185]
[1759153430981,132.43542389,208.4,208.32,4.3183]
[1759153431385,0.83542389,208.4,208.31,67.1788]
[1759153431679,0.83542389,208.4,208.33,67.1723]
[1759153431887,356.3,208.48,208.32,67.1756]
[1759153432090,0.83534368,208.43,208.33,67.1724]
[1759153432287,0.83534368,208.43,208.31,7.65]
[1759153432288,7.49534368,208.43,208.31,7.65]
[1759153432593,7.49534368,208.43,208.34,67.1686]
[1759153432779,349.64,208.48,208.38,67.1557]
[1759153432984,131.58,208.47,208.36,7.65]
[1759153433288,131.58,208.47,208.36,4.3175]
[1759153433689,4.3158,208.45,208.3,7.65]
[1759153433889,6.66,208.44,208.3,7.65]
[1759153434092,131.6,208.43,208.3,7.65]
[1759153434294,131.6,208.43,208.31,67.1788]
[1759153434487,131.64,208.43,208.35,67.1634]
[1759153434785,131.62,208.45,208.4,4.3166]
[1759153434982,131.62,208.45,208.37,67.1591]
[1759153435181,350.47521336,208.48,208.39,67.1528]
[1759153435382,350.47521336,208.48,208.43,4.3161]
[1759153435585,350.47521336,208.48,208.38,67.1563]
[1759153436091,350.47521336,208.48,208.39,67.1515]
[1759153436292,350.47521336,208.48,208.4,67.1492]
[1759153436487,6.61,208.56,208.45,67.1329]
[1759153436793,131.58,208.57,208.45,67.1329]
[1759153436988,131.58,208.57,208.47,4.3151]
[1759153437292,0.8347726,208.58,208.5,67.1177]
[1759153437497,6.61,208.67,208.52,4.3141]
[1759153437697,131.66,208.66,208.51,67.1146]
[1759153437894,0.83449235,208.64,208.52,67.1104]
[1759153438094,0.83449235,208.64,208.54,4.3137]
[1759153438295,0.83449235,208.64,208.49,7.51]
[1759153438597,6.61,208.63,208.49,7.51]
[1759153439301,6.61,208.63,208.5,4.3147]
[1759153439495,6.61,208.61,208.44,7.51]
[1759153439796,6.61,208.61,208.44,78.9626]
[1759153440193,4.3126,208.6,208.44,78.9625]
[1759153440389,6.61,208.61,208.46,67.1294]
[1759153440594,138.09,208.61,208.49,74.6303]
[1759153440899,0.83449235,208.64,208.49,74.6303]
[1759153440900,0.83449235,208.64,208.58,78.9144]
[1759153441110,131.5,208.71,208.59,67.088]
[1759153441295,131.5,208.71,208.58,7.51]
[1759153441501,131.62,208.72,208.58,74.6009]
[1759153441693,138.23,208.72,208.58,7.51]
[1759153441997,139.06420229,208.72,208.58,7.51]
[1759153442200,131.74,208.71,208.58,7.51]
[1759153442503,131.74,208.7,208.58,7.51]
[1759153442798,0.83420229,208.72,208.58,7.51]
[1759153442997,131.84,208.71,208.58,7.51]
[1759153443195,6.61,208.68,208.51,7.51]
[1759153443497,4.3112,208.67,208.51,78.9384]
[1759153443700,71.3744,208.67,208.51,11.8243]
[1759153443896,4.3122,208.63,208.51,7.51]
[1759153444093,131.88,208.63,208.51,7.51]
[1759153445197,67.0794,208.62,208.45,7.51]
[1759153445391,67.0892,208.59,208.45,7.51]
[1759153445595,6.61,208.61,208.45,7.51]
[1759153445799,6.61,208.61,208.45,74.6436]
[1759153445999,6.61,208.67,208.51,67.1139]
[1759153446201,131.82,208.66,208.55,74.6117]
[1759153446499,131.82,208.66,208.55,7.51]
[1759153446801,131.82,208.66,208.55,74.6116]
[1759153446995,131.82,208.66,208.55,7.51]
[1759153447193,6.61,208.62,208.44,4.3158]
[1759153447400,6.61,208.62,208.45,67.1333]
[1759153447596,6.61,208.62,208.46,67.1303]
[1759153447796,6.61,208.62,208.5,4.3146]
[1759153447992,131.8,208.61,208.49,67.1205]
[1759153448194,131.8,208.61,208.52,4.3141]
[1759153448699,6.61,208.63,208.5,7.51]
[1759153448898,6.61,208.63,208.53,67.1076]
[1759153449098,131.8,208.64,208.54,67.1043]
[1759153449299,131.82,208.64,208.5,74.6276]
[1759153449500,131.82,208.64,208.52,67.1102]
[1759153449704,131.78,208.66,208.55,67.0999]
[1759153449907,131.78,208.66,208.57,4.3131]
[1759153450397,131.78,208.66,208.55,7.51]
[1759153450601,131.78,208.66,208.57,67.095]
[1759153450802,131.78,208.66,208.61,74.5901]
[1759153451002,131.78,208.66,208.6,78.9082]
[1759153451200,131.78,208.66,208.6,11.8226]
[1759153451406,131.78,208.66,208.58,67.0919]
[1759153451605,131.78,208.66,208.59,71.4013]
[1759153451801,131.78,208.66,208.54,7.51]
[1759153452006,131.78,208.66,208.53,4.314]
[1759153452307,131.78,208.66,208.52,67.1114]
[1759153452518,131.78,208.66,208.5,67.1167]
[1759153452804,6.61,208.65,208.49,7.51]
[1759153453005,6.61,208.63,208.47,67.1269]
[1759153453200,81.06,208.62,208.49,7.51]
[1759153453401,81.06,208.62,208.45,67.1325]
[1759153453703,6.61,208.61,208.46,4.3154]
[1759153453899,6.61,208.61,208.44,7.51]
[1759153454304,6.61,208.61,208.49,67.1208]
[1759153454502,6.61,208.61,208.44,7.51]
[1759153454805,4.3127,208.6,208.46,4.3155]
[1759153455109,6.61,208.61,208.46,4.3155]
[1759153455110,6.61,208.61,208.5,67.1177]
[1759153455303,6.61,208.61,208.49,67.1204]
[1759153455699,6.61,208.61,208.49,71.4352]
[1759153455899,66.4,208.62,208.51,67.1145]
[1759153456111,66.4,208.62,208.49,75.0004]
[1759153456304,6.61,208.61,208.5,4.3145]
[1759153456903,67.0859,208.6,208.4,0.17209]
[1759153457107,6.61,208.54,208.4,0.17209]
[1759153457509,6.61,208.52,208.4,0.17209]
[1759153458011,131.7,208.51,208.4,0.17209]
[1759153458505,6.61,208.5,208.4,0.17209]
[1759153458810,67.1206,208.49,208.4,0.17209]
[1759153459003,6.61,208.45,208.31,4.3184]
[1759153459209,6.61,208.41,208.23,7.88]
[1759153459510,67.1556,208.38,208.23,7.88]
[1759153459711,6.61,208.39,208.23,7.88]
[1759153459906,131.68,208.38,208.23,75.0823]
[1759153460205,6.61,208.39,208.28,4.3191]
[1759153460406,349.06,208.41,208.29,67.1841]
[1759153460607,349.06,208.41,208.28,75.0678]
[1759153460608,349.06,208.41,208.3,67.182]
[1759153460906,131.68,208.41,208.32,67.1756]
[1759153461109,131.68,208.41,208.28,7.88]
[1759153461617,131.68,208.41,208.24,67.2008]
[1759153461618,6.61,208.4,208.24,67.2008]
[1759153461813,6.61,208.4,208.27,67.1916]
[1759153462110,6.61,208.4,208.29,67.1852]
[1759153462313,131.64,208.39,208.29,4.3189]
[1759153462712,131.64,208.39,208.27,67.1919]
[1759153462913,131.64,208.39,208.31,4.3185]
[1759153463213,131.64,208.39,208.27,67.1919]
[1759153463414,131.64,208.39,208.28,4.3191]
[1759153463715,131.64,208.39,208.29,67.1845]
[1759153463911,6.61,208.46,208.32,67.1752]
[1759153464120,131.54,208.45,208.33,67.1726]
[1759153464410,6.61,208.46,208.36,4.3175]
[1759153464615,6.61,208.46,208.31,7.98]
[1759153464616,131.52,208.45,208.31,7.98]
[1759153464920,131.52,208.45,208.32,67.1757]
[1759153465113,131.52,208.45,208.34,4.3179]
[1759153465512,131.52,208.45,208.26,67.1946]
[1759153465513,131.52,208.45,208.26,75.1746]
[1759153465817,131.54,208.44,208.34,67.1692]
[1759153466205,131.54,208.44,208.3,75.162]
[1759153466412,131.54,208.44,208.35,67.1652]
[1759153466714,131.54,208.44,208.35,4.3176]
[1759153467111,131.54,208.44,208.31,67.1786]
[1759153467311,131.54,208.44,208.35,4.3177]
[1759153467514,349.1,208.48,208.37,67.1595]
[1759153467710,349.1,208.48,208.38,67.155]
[1759153467916,6.63,208.51,208.4,4.3167]
[1759153467917,131.54,208.47,208.4,4.3167]
[1759153468114,138.17,208.47,208.35,7.98]
[1759153468418,138.17,208.47,208.38,4.3171]
[1759153468919,131.44,208.46,208.35,7.98]
[1759153469819,131.44,208.46,208.32,6.95159341]
[1759153470018,131.44,208.46,208.33,4.318]
[1759153470221,131.44,208.47,208.39,67.1502]
[1759153470514,131.44,208.47,208.41,67.145]
[1759153470710,131.44,208.47,208.43,4.3159]
[1759153470907,355.85,208.55,208.43,4.3159]
[1759153470908,131.48,208.5,208.43,4.3159]
[1759153471116,131.48,208.5,208.37,7.98]
[1759153471316,6.63,208.51,208.41,67.1454]
[1759153471512,349.22,208.55,208.44,67.1354]
[1759153471708,131.6,208.54,208.43,67.1389]
[1759153472013,131.6,208.54,208.44,67.1352]
[1759153472222,131.6,208.54,208.45,67.1321]
[1759153472512,349.22,208.55,208.48,67.1225]
[1759153472712,349.22,208.55,208.49,67.1195]
[1759153472916,349.22,208.55,208.45,7.98]
[1759153473117,349.22,208.55,208.46,67.1287]
[1759153473423,349.22,208.55,208.46,4.3153]
[1759153473621,349.22,208.55,208.47,67.1262]
[1759153473819,349.22,208.55,208.48,67.122]
[1759153474019,349.22,208.55,208.5,4.3145]
[1759153474319,349.22,208.55,208.5,12.2945]
[1759153474520,349.22,208.55,208.49,4.3147]
[1759153474721,349.22,208.55,208.46,67.1291]
[1759153474920,349.22,208.55,208.45,67.1325]
[1759153475217,349.22,208.55,208.44,7.98]
[1759153475420,349.22,208.55,208.45,67.1316]
[1759153475620,349.22,208.55,208.47,67.1232]
[1759153476020,349.22,208.55,208.51,4.3143]
[1759153476420,349.22,208.55,208.45,67.1324]
[1759153476621,349.22,208.55,208.44,7.98]
[1759153476622,349.22,208.55,208.44,12.2957]
[1759153476821,349.22,208.55,208.46,67.1285]
[1759153477018,349.22,208.55,208.47,67.1261]
[1759153477423,349.22,208.55,208.5,4.3145]
[1759153477617,349.22,208.55,208.47,67.1261]
[1759153477821,6.63,208.62,208.54,4.3137]
[1759153478026,6.63,208.62,208.49,7.98]
[1759153478027,131.28,208.61,208.49,7.98]
[1759153478728,131.28,208.61,208.47,67.1261]
[1759153478921,6.63,208.62,208.51,67.1129]
[1759153479123,349.16,208.67,208.55,67.0993]
[1759153479321,349.16,208.67,208.57,67.0937]
[1759153479526,131.24,208.66,208.57,67.0937]
[1759153479725,131.24,208.66,208.61,4.3123]
[1759153479918,131.24,208.66,208.55,67.1002]
[1759153480122,131.24,208.66,208.57,67.0932]
[1759153480322,131.24,208.66,208.6,4.3124]
[1759153480929,131.24,208.66,208.54,67.103]
[1759153481232,131.24,208.66,208.56,67.0968]
[1759153481427,131.24,208.66,208.57,67.0929]
[1759153481622,6.63,208.74,208.6,67.084]
[1759153481828,131.0,208.71,208.6,67.084]
[1759153482122,131.0,208.71,208.64,4.3117]
[1759153482331,131.0,208.71,208.62,67.0768]
[1759153482520,131.0,208.71,208.64,67.0706]
[1759153482719,131.0,208.71,208.65,67.0675]
[1759153483131,131.0,208.71,208.62,67.0766]
[1759153483337,130.92,208.76,208.66,67.0646]
[1759153484027,349.08,208.79,208.69,4.3106]
[1759153484234,130.86,208.78,208.65,75.0466]
[1759153484530,349.08,208.79,208.69,67.0541]
[1759153484728,19.11792908,208.87,208.7,75.031]
[1759153484933,130.9,208.86,208.72,67.0449]
[1759153485137,130.9,208.86,208.7,75.031]
[1759153485138,131.73365274,208.86,208.74,4.3096]
[1759153485332,131.73365274,208.86,208.7,7.98]
[1759153485632,0.83365274,208.86,208.75,4.3094]
[1759153486142,0.83365274,208.86,208.77,4.309]
[1759153486343,131.0,208.86,208.77,4.309]
[1759153486538,131.0,208.86,208.73,67.0405]
[1759153486847,131.0,208.86,208.7,14.93159341]
[1759153487143,6.63,208.83,208.65,6.95159341]
[1759153487443,4.3082,208.81,208.65,6.95159341]
[1759153487641,6.63,208.79,208.65,6.95159341]
[1759153487946,6.63,208.79,208.68,4.3108]
[1759153488133,6.63,208.79,208.65,6.95159341]
[1759153488339,6.63,208.79,208.64,7.98]
[1759153488941,6.63,208.73,208.58,7.98]
[1759153489140,137.45,208.73,208.6,67.0833]
[1759153489341,130.8,208.73,208.63,4.3118]
[1759153489546,130.8,208.73,208.57,74.04359341]
[1759153489744,6.63,208.74,208.59,7.98]
[1759153489943,130.78,208.72,208.59,7.98]
[1759153490545,6.63,208.77,208.62,67.0747]
[1759153490757,6.63,208.77,208.63,7.98]
[1759153491843,6.63,208.77,208.6,4.3125]
[1759153492144,6.63,208.8,208.71,67.0482]
[1759153492346,6.63,208.86,208.72,67.0455]
[1759153492542,6.63,208.86,208.7,7.98]
[1759153492743,6.63,208.86,208.74,4.3096]
[1759153493347,6.63,208.86,208.71,67.0484]
[1759153493548,6.63,208.86,208.72,67.0439]
[1759153493747,6.63,208.86,208.73,4.3096]
[1759153494050,6.63,208.86,208.7,75.0303]
[1759153494346,6.63,208.86,208.71,67.0481]
[1759153494546,4.3076,208.84,208.71,4.3101]
[1759153494748,4.3076,208.84,208.7,75.0316]
[1759153495142,6.63,208.86,208.73,4.3098]
[1759153495544,6.63,208.86,208.72,4.3099]
[1759153495743,4.3074,208.85,208.72,4.3099]
[1759153495946,4.3074,208.85,208.7,75.0314]
[1759153496251,6.63,208.86,208.75,4.3094]
[1759153496750,12.48792908,208.87,208.78,67.0246]
[1759153496952,12.48792908,208.87,208.82,67.0134]
[1759153497242,12.48792908,208.87,208.83,67.0095]
[1759153497438,4.41273809,208.87,208.86,7.4]
[1759153497641,0.1,208.9,208.86,66.9999]
[1759153497835,0.1,208.9,208.87,11.7069]
[1759153498042,0.1,208.9,208.86,66.9999]
[1759153498239,6.57,208.99,208.88,7.4]
[1759153498442,0.83321362,209.0,208.89,4.3065]
[1759153498649,0.83321362,209.0,208.88,7.4]
[1759153499051,10.8745,208.99,208.83,11.7077]
[1759153499246,73.5295,208.99,208.83,7.4]
[1759153499449,6.57,208.96,208.79,6.95159341]
[1759153500351,6.57,208.96,208.82,4.35320815]
[1759153500650,0.83321362,209.0,208.88,66.9934]
[1759153500853,0.83321362,209.0,208.89,7.4]
[1759153501048,6.57,209.07,208.94,66.9746]
[1759153501354,137.93,209.07,208.94,4.35320815]
[1759153501660,138.78279489,209.07,208.94,4.35320815]
[1759153501952,7.40279489,209.07,208.94,66.9744]
[1759153502245,7.40279489,209.07,208.96,4.3049]
[1759153502246,0.83279489,209.07,208.96,4.3049]
[1759153502445,0.83279489,209.07,208.96,71.32070815]
[1759153502647,0.83279489,209.07,208.97,7.4]